[Event "Open Cappelle-la-Grande"]
[Date "2026.02.23"]
[White "Cheng, Bobby"]
[Black "Jacobsen, Mikkel Manosri"]
[WhiteElo "2566"]
[BlackElo "2291"]
[Round "4.4.7"]
[Result "1/2-1/2"]
[TimeControl "40/5400+30:1800+30"]

d4 {[%clk 1:30:57]} d5 {[%clk 1:30:50]} c4 {[%clk 1:31:22]} c6 {[%clk 1:31:15]}
Nf3 {[%clk 1:31:39]} Nf6 {[%clk 1:31:40]} Nc3 {[%clk 1:31:49]} dxc4 {[%clk
1:32:03]} a4 {[%clk 1:31:45]} Bf5 {[%clk 1:32:22]} Ne5 {[%clk 1:31:48]} Nbd7
{[%clk 1:32:47]} Nxc4 {[%clk 1:32:12]} Qc7 {[%clk 1:33:11]} g3 {[%clk 1:32:01]}
e5 {[%clk 1:33:33]} dxe5 {[%clk 1:32:18]} Nxe5 {[%clk 1:33:58]} Bf4 {[%clk
1:32:40]} Nfd7 {[%clk 1:34:24]} Qc1 {[%clk 1:31:25]} f6 {[%clk 1:31:32]} Bg2
{[%clk 1:31:39]} Be6 {[%clk 1:27:08]} Nxe5 {[%clk 1:31:56]} fxe5 {[%clk
1:27:02]} Be3 {[%clk 1:31:52]} Nc5 {[%clk 1:27:12]} Qc2 {[%clk 1:30:45]} Bb3
{[%clk 1:27:26]} Qf5 {[%clk 1:30:18]} Be6 {[%clk 1:27:40]} Qg5 {[%clk 1:25:37]}
h6 {[%clk 1:08:01]} Qh5+ {[%clk 1:25:12]} Bf7 {[%clk 1:05:42]} Qf3 {[%clk
1:23:40]} Be7 {[%clk 1:04:43]} Qg4 {[%clk 1:18:45]} g6 {[%clk 0:23:17]} O-O
{[%clk 1:13:42]} h5 {[%clk 0:23:02]} Qf3 {[%clk 1:13:36]} O-O {[%clk 0:17:29]}
Bh6 {[%clk 1:06:32]} Rfe8 {[%clk 0:17:11]} g4 {[%clk 0:48:29]} e4 {[%clk
0:13:24]} Qe3 {[%clk 0:41:22]} hxg4 {[%clk 0:13:35]} Rad1 {[%clk 0:24:11]} a5
{[%clk 0:11:47]} Qd4 {[%clk 0:13:28]} Ne6 {[%clk 0:11:57]} Qxe4 {[%clk 0:13:21]}
Bd6 {[%clk 0:09:24]} Qxg4 {[%clk 0:10:42]} Bxh2+ {[%clk 0:09:48]} Kh1 {[%clk
0:11:11]} Bf4 {[%clk 0:10:11]} Bxf4 {[%clk 0:08:10]} Qxf4 {[%clk 0:10:35]} Qxf4
{[%clk 0:08:14]} Nxf4 {[%clk 0:11:04]} Rd7 {[%clk 0:08:39]} Re5 {[%clk 0:09:01]}
Bf3 {[%clk 0:03:22]} Kg7 {[%clk 0:08:29]} Rfd1 {[%clk 0:03:50]} Nh3 {[%clk
0:06:57]} R1d4 {[%clk 0:02:26]} Rg5 {[%clk 0:01:58]} Rh4 {[%clk 0:02:55]} Nxf2+
{[%clk 0:02:19]} Kh2 {[%clk 0:03:24]} Rb8 {[%clk 0:01:51]} e3 {[%clk 0:01:04]}
Rf8 {[%clk 0:00:36]} Rxb7 {[%clk 0:00:42]} Re8 {[%clk 0:00:36]} Ne4 {[%clk
0:13:29]} Nxe4 {[%clk 0:29:40]} Bxe4 {[%clk 0:12:19]} c5 {[%clk 0:24:38]} Bc6
{[%clk 0:04:53]} Rd8 {[%clk 0:18:33]} e4 {[%clk 0:04:11]} Rd2+ {[%clk 0:15:31]}
Kh1 {[%clk 0:04:40]} Rd1+ {[%clk 0:15:45]} Kh2 {[%clk 0:05:09]} Rd2+ {[%clk
0:16:09]} Kh1 {[%clk 0:05:38]} Rd1+ {[%clk 0:16:33]} Kh2 {[%clk 0:06:06]} Rd2+
{[%clk 0:16:13]} Kh1 {[%clk 0:06:06]} Rdg2 {[%clk 0:16:32]}

[Variant "Standard"]
[Site "Europe Echecs"]

[Event "Open Cappelle-la-Grande"]
[Date "2026.02.23"]
[White "Raja Rithvik R"]
[Black "Ringuet, Noe"]
[WhiteElo "2535"]
[BlackElo "2252"]
[Round "4.4.8"]
[Result "1/2-1/2"]
[TimeControl "40/5400+30:1800+30"]

d4 {[%clk 1:30:54]} d5 {[%clk 1:30:32]} c4 {[%clk 1:31:10]} c6 {[%clk 1:30:53]}
Nc3 {[%clk 1:29:44]} Nf6 {[%clk 1:30:30]} e3 {[%clk 1:30:07]} a6 {[%clk
1:30:05]} Nf3 {[%clk 1:29:16]} b5 {[%clk 1:29:41]} b3 {[%clk 1:28:26]} Bg4
{[%clk 1:29:56]} h3 {[%clk 1:19:47]} Bxf3 {[%clk 1:30:17]} Qxf3 {[%clk 1:20:14]}
e5 {[%clk 1:30:38]} Bd2 {[%clk 1:04:18]} exd4 {[%clk 0:55:56]} exd4 {[%clk
1:04:08]} dxc4 {[%clk 0:56:03]} bxc4 {[%clk 1:02:58]} Qxd4 {[%clk 0:56:28]} cxb5
{[%clk 1:00:40]} Qe5+ {[%clk 0:55:55]} Be2 {[%clk 0:57:21]} Bd6 {[%clk 0:50:59]}
bxc6 {[%clk 0:44:55]} O-O {[%clk 0:51:17]} g3 {[%clk 0:33:24]} Nxc6 {[%clk
0:43:14]} Qxc6 {[%clk 0:29:15]} Rac8 {[%clk 0:43:25]} Qf3 {[%clk 0:21:00]} Bb4
{[%clk 0:43:46]} Rc1 {[%clk 0:14:59]} Rfd8 {[%clk 0:09:33]} Qf4 {[%clk 0:13:32]}
Qxf4 {[%clk 0:07:32]} Bxf4 {[%clk 0:13:41]} Nd5 {[%clk 0:07:05]} Bd2 {[%clk
0:05:23]} Bxc3 {[%clk 0:03:54]} Bxc3 {[%clk 0:05:47]} Nxc3 {[%clk 0:04:11]} Bxa6
{[%clk 0:04:41]} Ra8 {[%clk 0:04:00]} Rxc3 {[%clk 0:02:55]} Rxa6 {[%clk
0:04:24]} a3 {[%clk 0:03:00]} Rda8 {[%clk 0:04:31]}

[Variant "Standard"]
[Site "Europe Echecs"]

[Event "Open Cappelle-la-Grande"]
[Date "2026.02.23"]
[White "Andersen, Gunnar"]
[Black "Can, Emre"]
[WhiteElo "2254"]
[BlackElo "2541"]
[Round "4.4.9"]
[Result "0-1"]
[TimeControl "40/5400+30:1800+30"]

Nf3 {[%clk 1:30:57]} g6 {[%clk 1:29:44]} g3 {[%clk 1:30:24]} c5 {[%clk 1:29:45]}
Bg2 {[%clk 1:30:42]} Bg7 {[%clk 1:30:03]} O-O {[%clk 1:29:39]} Nc6 {[%clk
1:29:55]} e4 {[%clk 1:29:41]} d6 {[%clk 1:29:54]} c3 {[%clk 1:28:37]} e5 {[%clk
1:28:13]} a3 {[%clk 1:26:35]} Nge7 {[%clk 1:25:59]} d3 {[%clk 1:22:50]} O-O
{[%clk 1:22:57]} b4 {[%clk 1:22:42]} h6 {[%clk 1:20:28]} Be3 {[%clk 1:17:44]} b6
{[%clk 1:20:31]} d4 {[%clk 1:15:18]} exd4 {[%clk 1:17:21]} cxd4 {[%clk 1:14:15]}
Bg4 {[%clk 1:17:39]} d5 {[%clk 1:06:42]} Bxa1 {[%clk 1:16:42]} dxc6 {[%clk
1:07:05]} Nxc6 {[%clk 1:16:53]} Bxh6 {[%clk 1:07:05]} Bg7 {[%clk 1:13:58]} Bxg7
{[%clk 1:07:17]} Kxg7 {[%clk 1:14:20]} Nc3 {[%clk 1:05:43]} Nd4 {[%clk 1:08:55]}
Nd5 {[%clk 1:05:31]} a5 {[%clk 1:07:34]} bxc5 {[%clk 0:58:33]} bxc5 {[%clk
1:07:25]} Qd3 {[%clk 0:58:52]} Bxf3 {[%clk 1:06:53]} Bxf3 {[%clk 0:59:14]} Rb8
{[%clk 1:03:45]} Bd1 {[%clk 0:59:15]} Qd7 {[%clk 0:58:09]} Qa6 {[%clk 0:55:26]}
Rfe8 {[%clk 0:51:12]} Re1 {[%clk 0:54:59]} f5 {[%clk 0:42:57]} e5 {[%clk
0:51:47]} Qc6 {[%clk 0:42:20]} Qxc6 {[%clk 0:51:20]} Nxc6 {[%clk 0:42:46]} e6
{[%clk 0:51:44]} Ne7 {[%clk 0:42:05]} Nc3 {[%clk 0:50:31]} d5 {[%clk 0:41:47]}
Ba4 {[%clk 0:50:54]} Red8 {[%clk 0:41:37]} Bd7 {[%clk 0:51:16]} Rb3 {[%clk
0:39:54]} Nb5 {[%clk 0:48:12]} a4 {[%clk 0:36:00]} Na7 {[%clk 0:43:43]} Kf6
{[%clk 0:32:03]} Bxa4 {[%clk 0:43:01]} Rxa3 {[%clk 0:32:21]} Nc6 {[%clk
0:43:26]} Ra8 {[%clk 0:31:52]} Nxe7 {[%clk 0:43:29]} Kxe7 {[%clk 0:32:18]}

[Variant "Standard"]
[Site "Europe Echecs"]

[Event "Open Cappelle-la-Grande"]
[Date "2026.02.23"]
[White "Bacrot, Alexandre"]
[Black "Helmer, Jan"]
[WhiteElo "2457"]
[BlackElo "2234"]
[Round "4.4.10"]
[Result "1-0"]
[TimeControl "40/5400+30:1800+30"]

e4 {[%clk 1:30:59]} c5 {[%clk 1:28:56]} Nf3 {[%clk 1:31:23]} Nc6 {[%clk
1:29:21]} Bb5 {[%clk 1:31:48]} Nf6 {[%clk 1:29:46]} Bxc6 {[%clk 1:32:11]} dxc6
{[%clk 1:30:12]} d3 {[%clk 1:32:31]} g6 {[%clk 1:30:21]} Be3 {[%clk 1:32:39]} b6
{[%clk 1:30:31]} Nc3 {[%clk 1:32:07]} Bg7 {[%clk 1:30:49]} Qd2 {[%clk 1:31:18]}
e5 {[%clk 1:19:29]} Bh6 {[%clk 1:27:24]} Bxh6 {[%clk 1:19:32]} Qxh6 {[%clk
1:27:47]} Qe7 {[%clk 1:17:21]} h3 {[%clk 1:28:07]} Nd7 {[%clk 1:15:00]} a4
{[%clk 1:27:27]} a5 {[%clk 1:14:29]} O-O {[%clk 1:27:48]} Qf8 {[%clk 1:13:09]}
Qe3 {[%clk 1:25:41]} Qg7 {[%clk 1:11:51]} Nd2 {[%clk 1:24:03]} O-O {[%clk
1:09:31]} Kh1 {[%clk 1:24:21]} Rd8 {[%clk 0:59:17]} f4 {[%clk 1:23:10]} exf4
{[%clk 0:58:48]} Rxf4 {[%clk 1:21:24]} Ne5 {[%clk 0:58:30]} Raf1 {[%clk
1:19:16]} Be6 {[%clk 0:57:36]} Ne2 {[%clk 1:18:23]} Ra7 {[%clk 0:52:48]} b3
{[%clk 1:16:22]} Rad7 {[%clk 0:50:27]} Qf2 {[%clk 0:56:32]} Nxd3 {[%clk
0:32:15]} cxd3 {[%clk 0:56:56]} Rxd3 {[%clk 0:32:40]} Nc4 {[%clk 0:56:01]} Rxb3
{[%clk 0:31:40]} e5 {[%clk 0:55:32]} g5 {[%clk 0:25:53]} Re4 {[%clk 0:52:03]}
Bd5 {[%clk 0:24:35]} Nd6 {[%clk 0:33:30]} Qg6 {[%clk 0:01:01]} Re3 {[%clk
0:32:07]} Rb4 {[%clk 0:01:10]} Qg3 {[%clk 0:30:08]} Rb1 {[%clk 0:01:16]} Rxb1
{[%clk 0:30:22]} Qxb1+ {[%clk 0:01:45]} Kh2 {[%clk 0:30:46]} Qg6 {[%clk
0:00:59]} Nc3 {[%clk 0:30:45]} h6 {[%clk 0:00:36]} Re2 {[%clk 0:28:07]} Be6
{[%clk 0:00:43]} Rb2 {[%clk 0:26:55]} Rb8 {[%clk 0:01:00]} Nce4 {[%clk 0:27:20]}
c4 {[%clk 0:01:00]} Qe3 {[%clk 0:27:13]} b5 {[%clk 0:00:37]} axb5 {[%clk
0:26:39]} cxb5 {[%clk 0:01:01]} Qa7 {[%clk 0:26:09]}

[Variant "Standard"]
[Site "Europe Echecs"]

[Event "Open Cappelle-la-Grande"]
[Date "2026.02.23"]
[White "Bournel, Antoine"]
[Black "Chen, Muxi"]
[WhiteElo "2434"]
[BlackElo "2225"]
[Round "4.4.11"]
[Result "1/2-1/2"]
[TimeControl "40/5400+30:1800+30"]

e4 {[%clk 1:28:01]} c5 {[%clk 1:30:51]} Nf3 {[%clk 1:28:26]} Nc6 {[%clk
1:31:14]} Bb5 {[%clk 1:28:50]} g6 {[%clk 1:31:35]} Bxc6 {[%clk 1:23:11]} dxc6
{[%clk 1:31:58]} d3 {[%clk 1:23:24]} Bg7 {[%clk 1:31:54]} h3 {[%clk 1:20:17]} e5
{[%clk 1:27:49]} O-O {[%clk 1:19:07]} Qe7 {[%clk 1:25:25]} a4 {[%clk 1:17:21]}
Nf6 {[%clk 1:23:14]} Na3 {[%clk 1:10:10]} O-O {[%clk 1:19:26]} Nc4 {[%clk
1:09:45]} Ne8 {[%clk 1:16:34]} a5 {[%clk 1:07:06]} Nc7 {[%clk 1:15:25]} Bd2
{[%clk 1:02:21]} f6 {[%clk 1:10:30]} Re1 {[%clk 0:57:53]} Rd8 {[%clk 1:05:30]}
Qb1 {[%clk 0:53:19]} Be6 {[%clk 1:04:00]} b3 {[%clk 0:52:52]} Nb5 {[%clk
1:00:09]} Nh2 {[%clk 0:48:51]} Nd4 {[%clk 0:58:38]} f4 {[%clk 0:47:30]} exf4
{[%clk 0:48:31]} Bxf4 {[%clk 0:47:27]} Qf8 {[%clk 0:45:55]} Qc1 {[%clk 0:35:40]}
f5 {[%clk 0:42:56]} exf5 {[%clk 0:34:41]} Qxf5 {[%clk 0:37:50]} Rb1 {[%clk
0:22:50]} Rf8 {[%clk 0:30:21]} Be3 {[%clk 0:22:15]} Qh5 {[%clk 0:23:52]} Qd2
{[%clk 0:20:32]} Bd5 {[%clk 0:20:51]} c3 {[%clk 0:17:37]} Nb5 {[%clk 0:15:01]}
Rbc1 {[%clk 0:14:55]} Be6 {[%clk 0:13:09]} Kh1 {[%clk 0:09:48]}

[Variant "Standard"]
[Site "Europe Echecs"]

[Event "Open Cappelle-la-Grande"]
[Date "2026.02.23"]
[White "Fiedorek, Michal"]
[Black "Wirig, Anthony"]
[WhiteElo "2288"]
[BlackElo "2414"]
[Round "4.4.12"]
[Result "1/2-1/2"]
[TimeControl "40/5400+30:1800+30"]

e4 {[%clk 1:29:35]} c6 {[%clk 1:29:41]} Nc3 {[%clk 1:29:31]} d5 {[%clk 1:29:18]}
Nf3 {[%clk 1:29:50]} dxe4 {[%clk 1:27:58]} Nxe4 {[%clk 1:30:14]} Nf6 {[%clk
1:28:07]} Qe2 {[%clk 1:30:17]} Bf5 {[%clk 1:26:56]} d3 {[%clk 1:25:11]} e6
{[%clk 1:25:26]} g3 {[%clk 1:08:11]} Be7 {[%clk 1:23:13]} Bg2 {[%clk 1:08:29]}
Nbd7 {[%clk 1:21:04]} O-O {[%clk 1:07:35]} O-O {[%clk 1:20:49]} Re1 {[%clk
1:04:45]} a5 {[%clk 1:17:24]} a4 {[%clk 1:01:21]} e5 {[%clk 1:06:28]} Nfd2
{[%clk 0:53:43]} Re8 {[%clk 0:59:33]} Nc4 {[%clk 0:51:32]} Nxe4 {[%clk 0:49:31]}
dxe4 {[%clk 0:48:26]} Be6 {[%clk 0:49:54]} b3 {[%clk 0:38:09]} Qc7 {[%clk
0:45:24]} Bb2 {[%clk 0:37:25]} f6 {[%clk 0:39:44]} Ne3 {[%clk 0:36:58]} Bc5
{[%clk 0:37:18]} Rad1 {[%clk 0:33:50]} Nf8 {[%clk 0:35:47]} Rd3 {[%clk 0:26:34]}
Rad8 {[%clk 0:33:28]} Red1 {[%clk 0:24:36]} Rxd3 {[%clk 0:33:22]}

[Variant "Standard"]
[Site "Europe Echecs"]

[Event "Open Cappelle-la-Grande"]
[Date "2026.02.23"]
[White "Bassini, Emile"]
[Black "Veleshnja, Zino"]
[WhiteElo "2409"]
[BlackElo "2189"]
[Round "4.4.13"]
[Result "1-0"]
[TimeControl "40/5400+30:1800+30"]

e4 {[%clk 1:30:56]} e6 {[%clk 1:30:53]} d4 {[%clk 1:31:19]} d5 {[%clk 1:31:16]}
Nc3 {[%clk 1:27:52]} Nf6 {[%clk 1:31:25]} e5 {[%clk 1:28:08]} Nfd7 {[%clk
1:31:50]} f4 {[%clk 1:23:58]} c5 {[%clk 1:32:03]} Nf3 {[%clk 1:23:33]} Nc6
{[%clk 1:32:27]} Be3 {[%clk 1:23:46]} cxd4 {[%clk 1:32:39]} Nxd4 {[%clk
1:24:12]} Qb6 {[%clk 1:32:51]} a3 {[%clk 1:23:58]} Bc5 {[%clk 1:30:11]} Ncb5
{[%clk 1:24:17]} Nxd4 {[%clk 1:25:17]} Bxd4 {[%clk 1:24:39]} Bxd4 {[%clk
1:23:17]} Qxd4 {[%clk 1:25:02]} Qxd4 {[%clk 1:23:12]} Nxd4 {[%clk 1:25:28]} a6
{[%clk 1:20:38]} Bd3 {[%clk 1:19:56]} Nc5 {[%clk 1:15:34]} Kd2 {[%clk 1:20:03]}
Bd7 {[%clk 1:15:06]} h4 {[%clk 1:20:22]} h5 {[%clk 1:13:35]} Rh3 {[%clk
1:15:26]} g6 {[%clk 1:05:34]} Rhh1 {[%clk 1:05:36]} Rc8 {[%clk 1:02:00]} Rhc1
{[%clk 1:02:28]} Ke7 {[%clk 0:58:06]} Rab1 {[%clk 0:58:21]} Rhd8 {[%clk
0:49:39]} Ke3 {[%clk 0:58:05]} Nxd3 {[%clk 0:39:29]} cxd3 {[%clk 0:58:22]} b6
{[%clk 0:39:25]} b4 {[%clk 0:40:15]} Ba4 {[%clk 0:35:35]} Kd2 {[%clk 0:39:33]}
Kd7 {[%clk 0:33:11]} Ne2 {[%clk 0:32:38]} Rxc1 {[%clk 0:24:55]} Rxc1 {[%clk
0:33:06]} Ra8 {[%clk 0:23:55]} Ke3 {[%clk 0:29:14]} a5 {[%clk 0:22:23]} Nd4
{[%clk 0:29:16]} axb4 {[%clk 0:20:18]} axb4 {[%clk 0:29:42]} Rc8 {[%clk
0:19:42]} Ra1 {[%clk 0:25:03]} b5 {[%clk 0:19:56]} Kd2 {[%clk 0:24:50]} Rc7
{[%clk 0:19:04]} Rc1 {[%clk 0:18:59]} Rb7 {[%clk 0:19:09]} Rc6 {[%clk 0:18:30]}
Rb8 {[%clk 0:16:28]} Ra6 {[%clk 0:14:07]} Rb7 {[%clk 0:14:55]} Ra8 {[%clk
0:13:40]} Ke7 {[%clk 0:09:19]} g3 {[%clk 0:06:23]} Kd7 {[%clk 0:09:31]} Rf8
{[%clk 0:06:46]} Ke7 {[%clk 0:09:34]} Rh8 {[%clk 0:06:53]} Kd7 {[%clk 0:09:18]}
Rg8 {[%clk 0:07:19]} Ke7 {[%clk 0:08:29]} Rc8 {[%clk 0:06:59]} Kd7 {[%clk
0:08:32]} Rc6 {[%clk 0:03:48]} Rb8 {[%clk 0:04:28]} Rd6+ {[%clk 0:28:27]} Kc7
{[%clk 0:32:56]} Rc6+ {[%clk 0:19:59]} Kd7 {[%clk 0:32:51]} Rc5 {[%clk 0:20:12]}
Rb7 {[%clk 0:32:18]} Ke3 {[%clk 0:19:44]} Ke7 {[%clk 0:28:27]} Rc8 {[%clk
0:13:30]} Kd7 {[%clk 0:27:44]} Rc1 {[%clk 0:09:14]} Rb8 {[%clk 0:27:23]} Nf3
{[%clk 0:09:27]} Ra8 {[%clk 0:25:44]} Nd2 {[%clk 0:06:58]} Ra7 {[%clk 0:25:02]}
Kd4 {[%clk 0:07:06]} Ra8 {[%clk 0:23:52]} Rc5 {[%clk 0:06:38]} Bd1 {[%clk
0:24:00]} Nb1 {[%clk 0:06:37]} Ra4 {[%clk 0:21:44]} Rxb5 {[%clk 0:06:14]} Kc6
{[%clk 0:19:53]} Nc3 {[%clk 0:05:42]} Ra1 {[%clk 0:20:19]} Ra5 {[%clk 0:05:22]}
Rxa5 {[%clk 0:19:07]} bxa5 {[%clk 0:05:50]} Bg4 {[%clk 0:19:29]} a6 {[%clk
0:01:46]} Kb6 {[%clk 0:19:38]} Nb5 {[%clk 0:02:14]} Kxa6 {[%clk 0:20:01]} Nd6
{[%clk 0:02:42]} Kb6 {[%clk 0:16:57]} Nxf7 {[%clk 0:02:58]} Kb5 {[%clk 0:16:35]}
Nd6+ {[%clk 0:01:31]} Kb4 {[%clk 0:16:46]} Nc8 {[%clk 0:01:37]} Kb5 {[%clk
0:16:06]} Kc3 {[%clk 0:01:03]} Kc5 {[%clk 0:16:06]} d4+ {[%clk 0:01:10]} Kb5
{[%clk 0:16:05]} Nd6+ {[%clk 0:01:16]} Ka5 {[%clk 0:16:17]} Nb7+ {[%clk
0:00:48]} Kb5 {[%clk 0:16:38]} Nc5 {[%clk 0:01:09]} Bf5 {[%clk 0:16:53]} Nb3
{[%clk 0:01:36]} Bg4 {[%clk 0:17:10]} Nd2 {[%clk 0:02:02]} Be2 {[%clk 0:17:15]}
f5 {[%clk 0:01:46]} gxf5 {[%clk 0:17:15]} Nb3 {[%clk 0:02:09]} Bg4 {[%clk
0:14:33]} Nc5 {[%clk 0:02:19]} f4 {[%clk 0:14:55]} gxf4 {[%clk 0:02:45]} Kc6
{[%clk 0:12:46]} Kb4 {[%clk 0:02:39]} Bf5 {[%clk 0:12:54]} Ka5 {[%clk 0:01:51]}
Bg4 {[%clk 0:13:20]} Na6 {[%clk 0:01:13]} Bh3 {[%clk 0:11:38]} Nb4+ {[%clk
0:01:37]} Kc7 {[%clk 0:11:51]} Kb5 {[%clk 0:02:02]} Bg4 {[%clk 0:12:05]} Kc5
{[%clk 0:02:27]} Bh3 {[%clk 0:11:51]} Na2 {[%clk 0:02:04]} Bg4 {[%clk 0:12:06]}
Nc3 {[%clk 0:02:32]} Bh3 {[%clk 0:12:15]} Nd1 {[%clk 0:02:00]} Bg4 {[%clk
0:11:09]} Ne3 {[%clk 0:02:23]} Kd7 {[%clk 0:08:14]} f5 {[%clk 0:02:23]} Bf3
{[%clk 0:07:51]} f6 {[%clk 0:02:27]} Be4 {[%clk 0:07:22]} Kb6 {[%clk 0:02:03]}
Bf3 {[%clk 0:07:33]} Nc2 {[%clk 0:02:10]} Be4 {[%clk 0:05:55]} Nb4 {[%clk
0:02:34]} Bf5 {[%clk 0:05:49]} Na6 {[%clk 0:02:49]} Ke8 {[%clk 0:04:35]} Kc7
{[%clk 0:02:57]} Kf7 {[%clk 0:05:01]} Kd6 {[%clk 0:02:54]} Bg4 {[%clk 0:04:57]}
Nc5 {[%clk 0:03:19]} Bf5 {[%clk 0:05:13]} Nb7 {[%clk 0:03:34]} Ke8 {[%clk
0:05:23]} Nd8 {[%clk 0:03:44]}

[Variant "Standard"]
[Site "Europe Echecs"]

[Event "Open Cappelle-la-Grande"]
[Date "2026.02.23"]
[White "Real, Thibault"]
[Black "Favaloro, Andrea"]
[WhiteElo "2243"]
[BlackElo "2409"]
[Round "4.4.14"]
[Result "0-1"]
[TimeControl "40/5400+30:1800+30"]

e4 {[%clk 1:25:41]} e5 {[%clk 1:30:42]} Nf3 {[%clk 1:25:56]} Nc6 {[%clk
1:30:39]} Nc3 {[%clk 1:26:17]} Nf6 {[%clk 1:30:53]} d4 {[%clk 1:26:40]} Bb4
{[%clk 1:29:50]} Nxe5 {[%clk 1:15:52]} Bxc3+ {[%clk 1:29:56]} bxc3 {[%clk
1:16:13]} Qe7 {[%clk 1:30:19]} Nxc6 {[%clk 1:11:55]} Qxe4+ {[%clk 1:30:30]} Qe2
{[%clk 1:11:44]} dxc6 {[%clk 1:30:36]} f3 {[%clk 1:04:12]} Qxe2+ {[%clk
1:30:54]} Bxe2 {[%clk 1:04:35]} Bf5 {[%clk 1:31:15]} Bd3 {[%clk 0:50:55]} Bxd3
{[%clk 1:31:08]} cxd3 {[%clk 0:51:20]} O-O-O {[%clk 1:30:05]} Be3 {[%clk
0:44:37]} Rhe8 {[%clk 1:20:36]} Kd2 {[%clk 0:44:55]} Nd5 {[%clk 1:18:40]} Rhe1
{[%clk 0:43:27]} Nxe3 {[%clk 1:18:26]} Rxe3 {[%clk 0:43:50]} Rxe3 {[%clk
1:18:51]} Kxe3 {[%clk 0:44:11]} Rd5 {[%clk 1:19:17]} Rb1 {[%clk 0:40:37]} Rh5
{[%clk 1:16:52]} h3 {[%clk 0:40:46]} Ra5 {[%clk 1:17:11]} Rb2 {[%clk 0:41:06]}
Ra3 {[%clk 1:17:14]} Rc2 {[%clk 0:37:28]} Kd7 {[%clk 1:16:19]} g4 {[%clk
0:35:40]} Ra5 {[%clk 1:14:35]} Ke4 {[%clk 0:30:06]} Rb5 {[%clk 1:14:37]} h4
{[%clk 0:17:09]} Rb1 {[%clk 1:14:06]} h5 {[%clk 0:12:23]} a5 {[%clk 1:09:42]} c4
{[%clk 0:05:18]} a4 {[%clk 1:00:13]} c5 {[%clk 0:03:12]} b5 {[%clk 0:54:17]} d5
{[%clk 0:01:55]} a3 {[%clk 0:52:12]} dxc6+ {[%clk 0:01:05]} Kxc6 {[%clk
0:52:36]} Kd4 {[%clk 0:00:54]} Rb2 {[%clk 0:52:20]} Rc3 {[%clk 0:30:30]}

[Variant "Standard"]
[Site "Europe Echecs"]

[Event "Open Cappelle-la-Grande"]
[Date "2026.02.23"]
[White "Maugenest, Matthieu"]
[Black "Janzelj, Tim"]
[WhiteElo "2042"]
[BlackElo "2377"]
[Round "4.4.15"]
[Result "0-1"]
[TimeControl "40/5400+30:1800+30"]

d4 {[%clk 1:30:55]} d5 {[%clk 1:30:53]} Nf3 {[%clk 1:31:05]} Nf6 {[%clk
1:31:17]} c4 {[%clk 1:31:25]} c6 {[%clk 1:31:15]} Qc2 {[%clk 1:31:22]} g6 {[%clk
1:30:33]} Bf4 {[%clk 1:31:28]} Bg7 {[%clk 1:17:58]} e3 {[%clk 1:30:14]} O-O
{[%clk 1:05:22]} Nc3 {[%clk 1:29:16]} Bf5 {[%clk 0:56:18]} Qb3 {[%clk 1:29:32]}
Qb6 {[%clk 0:55:56]} h3 {[%clk 1:21:24]} Na6 {[%clk 0:45:04]} c5 {[%clk
1:06:45]} Qxb3 {[%clk 0:36:21]} axb3 {[%clk 1:06:16]} Nb4 {[%clk 0:36:46]} Kd2
{[%clk 1:01:52]} Nd7 {[%clk 0:35:50]} Ra4 {[%clk 0:58:25]} a5 {[%clk 0:34:32]}
Bc7 {[%clk 0:54:00]} e5 {[%clk 0:34:01]} Bxa5 {[%clk 0:46:44]} exd4 {[%clk
0:27:30]} exd4 {[%clk 0:24:56]} Bh6+ {[%clk 0:26:52]} Ke1 {[%clk 0:20:18]} Rfe8+
{[%clk 0:24:54]} Be2 {[%clk 0:17:42]} Nd3+ {[%clk 0:23:54]} Kf1 {[%clk 0:18:01]}
Nxb2 {[%clk 0:14:58]} Ra2 {[%clk 0:17:30]} Nd3 {[%clk 0:14:50]} Bxd3 {[%clk
0:13:24]} Bxd3+ {[%clk 0:15:18]} Kg1 {[%clk 0:13:40]} Be4 {[%clk 0:12:29]} b4
{[%clk 0:11:23]} Bg7 {[%clk 0:09:55]} Ne2 {[%clk 0:07:49]} Re7 {[%clk 0:07:59]}
Rd2 {[%clk 0:06:01]} Rae8 {[%clk 0:06:16]} Ng3 {[%clk 0:01:51]} Bxf3 {[%clk
0:03:30]} gxf3 {[%clk 0:02:19]} Nf8 {[%clk 0:03:51]} Kh2 {[%clk 0:02:06]} Re1
{[%clk 0:01:47]} Rxe1 {[%clk 0:01:02]} Rxe1 {[%clk 0:02:16]} Ne2 {[%clk
0:01:04]} Ne6 {[%clk 0:02:31]} Kg3 {[%clk 0:01:09]} Rb1 {[%clk 0:01:37]} f4
{[%clk 0:00:49]} Bf6 {[%clk 0:01:20]} Rd3 {[%clk 0:00:44]} Rb2 {[%clk 0:01:28]}
Kf3 {[%clk 0:01:00]} Rxe2 {[%clk 0:00:52]} Kxe2 {[%clk 0:00:50]} Nxf4+ {[%clk
0:01:20]} Kd2 {[%clk 0:01:06]} Nxd3 {[%clk 0:01:49]} Kxd3 {[%clk 0:01:31]} Kf8
{[%clk 0:01:13]} Bc7 {[%clk 0:01:05]} Ke7 {[%clk 0:01:37]} f4 {[%clk 0:00:39]}
Ke6 {[%clk 0:01:47]} Ke3 {[%clk 0:00:56]} Bh4 {[%clk 0:02:01]} Ke2 {[%clk
0:00:41]} Kf5 {[%clk 0:02:23]} Ke3 {[%clk 0:00:40]} Be1 {[%clk 0:02:39]} Ba5
{[%clk 0:00:54]} h6 {[%clk 0:03:02]}

[Variant "Standard"]
[Site "Europe Echecs"]

[Event "Open Cappelle-la-Grande"]
[Date "2026.02.23"]
[White "Godart, Francois"]
[Black "Le Geay, Joachim"]
[WhiteElo "2372"]
[BlackElo "2182"]
[Round "4.4.16"]
[Result "1-0"]
[TimeControl "40/5400+30:1800+30"]

e4 {[%clk 1:30:55]} c5 {[%clk 1:30:55]} Nf3 {[%clk 1:31:21]} e6 {[%clk 1:31:21]}
d4 {[%clk 1:31:45]} cxd4 {[%clk 1:31:48]} Nxd4 {[%clk 1:32:12]} Nf6 {[%clk
1:32:15]} Nc3 {[%clk 1:32:35]} Nc6 {[%clk 1:32:41]} Nxc6 {[%clk 1:32:40]} bxc6
{[%clk 1:33:07]} e5 {[%clk 1:33:05]} Nd5 {[%clk 1:33:32]} Ne4 {[%clk 1:33:30]}
Qc7 {[%clk 1:33:59]} f4 {[%clk 1:33:54]} Qb6 {[%clk 1:34:26]} a3 {[%clk
1:34:03]} Be7 {[%clk 1:25:53]} c4 {[%clk 1:33:44]} Ne3 {[%clk 1:26:18]} Qd3
{[%clk 1:34:10]} Nxf1 {[%clk 1:26:42]} Rxf1 {[%clk 1:34:36]} c5 {[%clk 1:21:02]}
Be3 {[%clk 1:34:50]} Bb7 {[%clk 1:16:40]} O-O-O {[%clk 1:10:21]} O-O {[%clk
1:13:02]} Nd6 {[%clk 0:57:15]} Bxd6 {[%clk 1:06:51]} Qxd6 {[%clk 0:55:20]} Qxd6
{[%clk 0:59:11]} Rxd6 {[%clk 0:54:11]} Bxg2 {[%clk 0:59:35]} Rg1 {[%clk
0:53:58]} Bc6 {[%clk 0:59:18]} Bxc5 {[%clk 0:53:54]} Rfc8 {[%clk 0:59:08]} b4
{[%clk 0:53:04]} a5 {[%clk 0:54:54]} Kb2 {[%clk 0:52:25]} axb4 {[%clk 0:51:34]}
axb4 {[%clk 0:52:46]} Ra4 {[%clk 0:50:22]} Kb3 {[%clk 0:44:37]} Rca8 {[%clk
0:44:13]} b5 {[%clk 0:44:13]} Be4 {[%clk 0:42:44]} Re1 {[%clk 0:43:17]} Bc2+
{[%clk 0:41:14]} Kc3 {[%clk 0:43:39]} Rc8 {[%clk 0:40:57]} Rxd7 {[%clk 0:43:33]}
f5 {[%clk 0:34:16]} Bb4 {[%clk 0:43:09]} Be4 {[%clk 0:34:27]} Red1 {[%clk
0:41:13]} Raa8 {[%clk 0:26:56]} Kb3 {[%clk 0:40:20]} Rab8 {[%clk 0:24:56]} Bd6
{[%clk 0:36:35]} Rxb5+ {[%clk 0:19:57]} cxb5 {[%clk 0:36:59]} Bc2+ {[%clk
0:20:25]} Kb4 {[%clk 0:36:56]} Bxd1 {[%clk 0:20:50]} b6 {[%clk 0:36:50]} Bf3
{[%clk 0:20:45]} b7 {[%clk 0:37:00]} Bxb7 {[%clk 0:21:10]} Rxb7 {[%clk 0:37:26]}
Rc2 {[%clk 0:21:26]} Rb8+ {[%clk 0:37:22]} Kf7 {[%clk 0:21:50]} Rf8+ {[%clk
0:37:46]} Kg6 {[%clk 0:22:04]} Re8 {[%clk 0:38:10]} Kh5 {[%clk 0:08:14]} Rxe6
{[%clk 0:37:34]} Rf2 {[%clk 0:05:08]} Re8 {[%clk 0:37:29]} Rxf4+ {[%clk
0:05:15]} Kc5 {[%clk 0:37:53]} g5 {[%clk 0:04:23]} e6 {[%clk 0:37:47]} Re4
{[%clk 0:04:29]} e7 {[%clk 0:38:03]} Kg4 {[%clk 0:04:21]} Rf8 {[%clk 0:38:17]}
h5 {[%clk 0:04:15]} Kd5 {[%clk 0:38:23]} Rxe7 {[%clk 0:04:16]} Bxe7 {[%clk
0:38:48]} f4 {[%clk 0:04:14]} Ke4 {[%clk 0:39:02]} h4 {[%clk 0:04:24]} Bxg5
{[%clk 0:38:11]}

[Variant "Standard"]
[Site "Europe Echecs"]